[Event "45th FIDE Olympiad 2024"]
[Site "Budapest"]
[Date "2024.09.19"]
[Round "8"]
[White "Hill, Jonathan"]
[Black "Savva, Panikos"]
[Result "1/2-1/2"]
[WhiteElo "1756"]
[BlackElo "1973"]
[PlyCount "83"]
[EventDate "2024.09.05"]
[EventType "team-tourn"]
[EventCountry "HUN"]
[WhiteTeam "Guernsey"]
[BlackTeam "Cyprus"]
[BlackTeamCountry "CYP"]
[TimeControl "40/5400+30:1800+30"]

1. d4 Nf6 2. Nf3 c5 3. c3 cxd4 4. cxd4 g6 5. Bf4 Bg7 6. e3 O-O 7. Be2 Nc6 8. O-O Nh5 9. Bg3 Nxg3 10. hxg3 d6 11. Nc3 Bg4 12. Rc1 Qa5 13. a3 Qh5 14. b4 a6 15. Qd2 e5 16. d5 Na7 17. a4 f5 18. Nh2 Bxe2 19. Nxe2 Rac8 20. Rfd1 g5 21. g4 fxg4 22. Ng3 Qg6 23. Nxg4 h5 24. Nh2 h4 25. Nh1 Qe4 26. f3 Qf5 27. e4 Qg6 28. Ng4 h3 29. Ng3 hxg2 30. Qxg2 Qe8 31. Qa2 Rxf3 32. Kg2 Rfc3 33. Qd2 Qxa4 34. Qxg5 Rxc1 35. Nf6+ Kf7 36. Ngh5 Bxf6 37. Qxf6+ Ke8 38. Qe6+ Kd8 39. Qf6+ Kd7 40. Qe6+ Kd8 41. Qf6+ Kd7 42. Qe6+ 1/2-1/2

[Event "45th FIDE Olympiad 2024"]
[Site "Budapest"]
[Date "2024.09.19"]
[Round "8.1"]
[White "Maghsoodloo, Parham"]
[Black "Gukesh, D."]
[Result "0-1"]
[ECO "D33"]
[WhiteElo "2723"]
[BlackElo "2764"]
[Annotator "TA"]
[PlyCount "68"]
[EventDate "2024.09.05"]
[EventType "team-tourn"]
[EventCountry "HUN"]
[SourceTitle "playchess.com"]
[Source "ChessBase"]
[SourceQuality "1"]
[WhiteTeam "Iran"]
[BlackTeam "India"]
[WhiteTeamCountry "IRI"]
[BlackTeamCountry "IND"]
[TimeControl "40/5400+30:1800+30"]

{[%evp 16,68,35,48,45,43,35,36,34,30,29,16,11,2,8,0,0,-8,0,0,0,-81,-62,-83,-81,-80,-78,-83,-71,-68,-50,-66,-8,0,-8,-8,-8,-8,-13,-13,-8,-13,0,-496,-484,-485,-473,-1282,-1225,-29988,-29989,-29989,-29978,-5206,-1644]} 1. d4 {[%emt 0:00:03]} d5 {[%emt 0:00:08]} 2. c4 {[%emt 0:02:53]} e6 {[%emt 0:00:07]} 3. Nc3 {[%emt 0:02:10]} c5 {[%emt 0:00:06]} 4. cxd5 {[%emt 0:00:11]} exd5 {[%emt 0:00:06]} 5. Nf3 {[%emt 0:01:24]} Nf6 {[%emt 0:00:08]} 6. g3 {[%emt 0:03:02]} Nc6 {[%emt 0:00:08]} 7. Bg2 {[%emt 0:00:03]} cxd4 {[%emt 0:00:21]} 8. Nxd4 {[%emt 0:00:06]} Bc5 {[%emt 0:00:05]} 9. Nb3 {[%emt 0:00:04][%csl LRc5,LRd5]} Bb6 {[%emt 0:00:05]} 10. O-O {[%emt 0:00:05][%cal Oc1g5]} d4 {[%emt 0:01:54]} 11. Na4 {[%emt 0:00:19]} O-O {[%emt 0:00:07] White is slightly better.} 12. Re1 {[%emt 0:07:37]} h6 {[%emt 0:13:15]} 13. Bf4 {[%emt 0:11:35]} Be6 {[%emt 0:15:03]} 14. Nbc5 {[%emt 0:02:12]} Bd5 {[%emt 0:01:07]} 15. Nxb6 {[%emt 0:04:54]} axb6 {[%emt 0:03:47]} 16. Nxb7 {[%emt 0:02:16]} Qd7 {[%emt 0:04:39] Threatens to win with ...Bxg2.} 17. e4 $1 {[%emt 0:00:56]} dxe3 {[%emt 0:06:33]} 18. Rxe3 {[%emt 0:01:40]} (18. Bxe3 $2 Nb4 19. Nc5 (19. Bxd5 $2 Nbxd5 20. Bxb6 Nxb6 $19) 19... bxc5 20. Bxc5 Rfb8 (20... Nxa2 21. Bxf8 Kxf8 22. Qd4 $17) 21. Bxb4 Rxb4 22. Bxd5 Qxd5 23. Qxd5 Nxd5 $19) (18. fxe3 $11 Nb4 19. Bxd5 Nbxd5 (19... Nfxd5 20. e4 $15) 20. e4) 18... Nb4 $1 $17 {[%emt 0:02:59]} 19. Nd6 {[%emt 0:03:29]} Bxg2 {[%emt 0:04:53]} 20. Kxg2 {[%emt 0:00:29]} Rad8 {[%emt 0:02:13] ...Nbd5 is the strong threat.} 21. Rb3 {[%emt 0:21:58] [#]} Nbd5 {[%emt 0:06:49][%cal Bb4d5,Bd5e7,Be7f5][%mdl 1056] Black has strong compensation.} 22. Be5 {[%emt 0:04:07]} Qe6 {[%emt 0:02:51][%csl LRd6,LRe5]} 23. Qd4 {[%emt 0:01:41]} (23. Bxf6 $2 gxf6 24. Qd2 Qxd6 $19 (24... Rxd6 $2 25. Re1 $19)) 23... Ng4 {[%emt 0:24:07]} ({Black should try} 23... Rxd6 $15 24. Bxd6 Qxd6) 24. Rd1 $11 {[%emt 0:05:32]} Ne7 {[%emt 0:03:38] Excellent horsemanship.} 25. Bxg7 {[%emt 0:06:52]} Nf5 $1 {[%emt 0:00:03] Some like it hot} 26. Qf4 {[%emt 0:01:06]} (26. Qxg4 $2 Ne3+ (26... Nxg7 $2 27. Qxe6 Nxe6 28. Rxb6 $18) 27. Rxe3 Qxg4 28. Bxf8 Qxd1 $19) 26... Nxg7 {[%emt 0:00:39]} 27. Rxb6 {[%emt 0:00:46]} f5 $36 {[%emt 0:03:03][%mdl 2048] Black fights for an advantage.} 28. h3 {[%emt 0:09:03]} (28. b3 {with more complications.} Qe2 29. Rd2 Qe1 30. Rd5) 28... Ne5 {[%emt 0:00:26][%cal Od8b8]} 29. Nc4 $2 {[%emt 0:02:57][%mdl 8192]} Qxc4 $19 {[%emt 0:02:02]} 30. Rxd8 {[%emt 0:00:04]} Rxd8 {[%emt 0:00:04]} 31. Qxe5 {[%emt 0:00:04] [#]} (31. Qxc4+ $142 Nxc4 32. Rxh6) 31... Rd1 $1 {[%emt 0:01:16] aiming for ...Qf1+.} 32. Rb3 {[%emt 0:06:16]} Qf1+ {[%emt 0:00:48]} 33. Kf3 {[%emt 0:00:01]} Qh1+ {[%emt 0:00:39]} 34. Kf4 {[%emt 0:00:23]} Rd5 {[%emt 0:00:39] Weighted Error Value: White=0.80/Black=0.04 (flawless) .  Loses game:     	White=1     	---        Mistake:       	White=2     	Black=1      Inaccurate:     	White=1     	---        OK:         	White=12    	Black=13     Best:        	White=1     	Black=1      Strong:       	White=1     	Black=3} (34... Qg2 $142 35. f3 Qd2+ (35... Qxh3 $2 {is the wrong capture.} 36. Rb8+ Kh7 37. Rb7 $18) 36. Re3 Re1 (36... Qb4+ $2 37. Re4 $19) 37. Qb8+ Kh7 38. Qb6 Rxe3 39. Qxe3 Nh5+ (39... Qxb2 $2 40. Qd3 $19) (39... Qd6+ 40. Qe5 Nh5+ 41. Ke3 Qxe5+ 42. Kd3 Qxg3 43. Kd4 Qxf3 44. b4 f4 45. Kc5 Qe3+ 46. Kc6 f3 47. a3 f2 48. h4 f1=Q 49. Kd6 Qa6+ 50. Kd7 Qb7+ 51. Kd8 Qee7#) 40. Ke5 Qxe3+ 41. Kd6 Nxg3 42. b3 Qxf3 43. a4 f4 (43... Qxb3 {gets mated.} 44. Ke5 Qe3+ 45. Kd6 Ne4+ 46. Kd5 Qc5+ 47. Ke6 Qd4 48. Kxf5 Ng5 49. h4 Qe4+ 50. Kf6 Qe6#) 44. a5 Qxb3 45. a6 f3 46. a7 Qb6+ 47. Ke7 Qxa7+ 48. Kd6 f2 49. h4 f1=Q (49... f1=B {is a self mate.} 50. Kd5 Nf5 51. Ke4 Qd4+ 52. Kf3 Qe3+ 53. Kg4 Bh3+ 54. Kh5 Ng7#) 50. Kd5 Qff7+ 51. Ke5 Qc5#) 0-1

[Event "45th FIDE Olympiad 2024"]
[Site "Budapest"]
[Date "2024.09.19"]
[Round "8.1"]
[White "Allam, Mohamed"]
[Black "Asante, Debesai Zerabruk"]
[Result "1-0"]
[WhiteElo "2053"]
[BlackElo "1908"]
[PlyCount "73"]
[EventDate "2024.09.05"]
[EventType "team-tourn"]
[EventCountry "HUN"]
[WhiteTeam "Palestine"]
[BlackTeam "Eritrea"]
[WhiteTeamCountry "PLE"]
[BlackTeamCountry "ERI"]
[TimeControl "40/5400+30:1800+30"]

1. d4 Nf6 2. Nc3 d5 3. Bf4 c5 4. e4 e6 5. exd5 Nxd5 6. Nxd5 Qxd5 7. Nf3 Nc6 8. dxc5 Qxd1+ 9. Rxd1 Bxc5 10. Bb5 Bd7 11. Ke2 Ke7 12. c3 a5 13. Rd2 Rhd8 14. Rhd1 Be8 15. Be3 Bxe3 16. Kxe3 f6 17. a4 Rxd2 18. Rxd2 Rc8 19. Kd3 Rd8+ 20. Kc4 Rc8 21. Kc5 Ne5+ 22. Kb6 Bxb5 23. Kxb5 Nc4 24. Re2 Kd6 25. b4 Na3+ 26. Kxa5 Rxc3 27. Kb6 Rb3 28. b5 Rb4 29. Rd2+ Ke7 30. Rd4 Rb2 31. Kxb7 Nxb5 32. axb5 Rxb5+ 33. Kc6 Rb1 34. Rd7+ Kf8 35. Nd4 Re1 36. Kd6 Rd1 37. Kxe6 1-0

[Event "45th FIDE Olympiad 2024"]
[Site "Budapest"]
[Date "2024.09.19"]
[Round "8.2"]
[White "Praggnanandhaa, R."]
[Black "Tabatabaei, M. Amin"]
[Result "1/2-1/2"]
[ECO "E05"]
[WhiteElo "2750"]
[BlackElo "2714"]
[Annotator "TA"]
[PlyCount "64"]
[EventDate "2024.09.05"]
[EventType "team-tourn"]
[EventCountry "HUN"]
[SourceTitle "playchess.com"]
[Source "ChessBase"]
[SourceQuality "1"]
[WhiteTeam "India"]
[BlackTeam "Iran"]
[WhiteTeamCountry "IND"]
[BlackTeamCountry "IRI"]
[TimeControl "40/5400+30:1800+30"]

{[%evp 18,64,29,16,11,11,18,14,24,15,19,0,12,-4,0,-21,-4,-19,-29,-45,-64,-63,-51,-51,-41,-45,-47,-47,-15,-8,-35,-51,-45,-49,-52,-101,-19,-17,0,0,0,0,0,-35,0,0,0,0,0]} 1. d4 {[%emt 0:01:08]} d5 {[%emt 0:00:11]} 2. c4 {[%emt 0:00:08]} e6 {[%emt 0:00:05]} 3. Nf3 {[%emt 0:00:23]} Nf6 {[%emt 0:00:08]} 4. g3 {[%emt 0:00:09]} Be7 {[%emt 0:00:08]} 5. Bg2 {[%emt 0:00:07]} O-O {[%emt 0:00:06]} 6. O-O {[%emt 0:00:07]} dxc4 {[%emt 0:00:05]} 7. Qc2 {[%emt 0:01:37]} a6 {[%emt 0:00:08]} 8. a4 {[%emt 0:00:06]} Bd7 {[%emt 0:00:09]} 9. Qxc4 {[%emt 0:00:55]} Bc6 {[%emt 0:00:07]} 10. Bf4 {[%emt 0:00:32]} Bd6 {[%emt 0:01:41]} 11. Qc1 {[%emt 0:00:33]} h6 {[%emt 0:00:36]} 12. Nc3 {[%emt 0:01:34]} Nd5 {[%emt 0:07:33]} 13. Bd2 {[%emt 0:10:31]} ({Reject} 13. Bxh6 gxh6 14. Nxd5 (14. Qxh6 Qf6 $17) 14... Bxd5 $17) 13... Nd7 {[%emt 0:02:26]} 14. Rd1 {[%emt 0:07:58]} Qe8 {[%emt 0:05:27]} 15. a5 {[%emt 0:18:56]} f5 {[%emt 0:05:32]} 16. Qc2 {[%emt 0:04:52]} N7f6 {[%emt 0:13:17]} 17. Re1 {[%emt 0:09:51]} Rd8 {[%emt 0:00:50]} 18. Ne5 {[%emt 0:10:50]} Nb4 {[%emt 0:14:47]} 19. Qb3 {[%emt 0:02:30]} Bxg2 {[%emt 0:03:31]} 20. Kxg2 {[%emt 0:00:07]} Bxe5 {[%emt 0:00:23]} 21. dxe5 {[%emt 0:00:22]} Rxd2 {[%emt 0:03:22]} 22. Qxb4 {[%emt 0:00:31]} Qc6+ {[%emt 0:04:49]} (22... Ng4 {looks sharper.} 23. Qxb7 f4 24. Qf3 Nxe5 25. Qe4 Qh5) 23. Kg1 {[%emt 0:02:19]} Nd5 {[%emt 0:00:26]} 24. Nxd5 {[%emt 0:02:12]} Qxd5 {[%emt 0:00:35]} 25. Rac1 {[%emt 0:00:24]} Rf7 {[%emt 0:01:20][%cal Od2d4]} 26. b3 {[%emt 0:10:36] [#]} (26. Rc5 $15 {deserves consideration.} Qd4 27. Qxd4 Rxd4 28. Rec1) 26... Rd4 {[%emt 0:11:05]} (26... c6 $1 $17 {[%cal Od2b2]} 27. Rc5 Qd4 28. Qxd4 Rxd4) 27. Rc4 $1 $11 {[%emt 0:02:27]} Rd1 {[%emt 0:02:42]} 28. Rxd1 {[%emt 0:02:16]} Qxd1+ {[%emt 0:00:13]} 29. Kg2 {[%emt 0:00:06]} Qd5+ {[%emt 0:00:13]} 30. Kg1 {[%emt 0:00:47]} Rd7 {[%emt 0:16:17]} 31. e3 {[%emt 0:00:00] [#] Threatens to win with Rd4.} Qd1+ {[%emt 0:00:42]} 32. Kg2 {[%emt 0:00:00]} Qd5+ {[%emt 0:00:03] Weighted Error Value: White=0.09 (flawless) /Black=0.11 (very precise) .  Mistake:       	White=1     	Black=1      Inaccurate:     	White=1     	Black=2      OK:         	White=6     	Black=13     Best:        	White=3     	---        Strong:       	White=1     	---} 1/2-1/2

[Event "45th FIDE Olympiad 2024"]
[Site "Budapest"]
[Date "2024.09.19"]
[Round "8.2"]
[White "Kibrom, Weldegebriel Beraki"]
[Black "Seder, Mohammed"]
[Result "1-0"]
[WhiteElo "1885"]
[BlackElo "2116"]
[PlyCount "129"]
[EventDate "2024.09.05"]
[EventType "team-tourn"]
[EventCountry "HUN"]
[WhiteTeam "Eritrea"]
[BlackTeam "Palestine"]
[WhiteTeamCountry "ERI"]
[BlackTeamCountry "PLE"]
[TimeControl "40/5400+30:1800+30"]

1. d4 Nf6 2. c4 e6 3. Nc3 Bb4 4. Qc2 c5 5. dxc5 Na6 6. g3 Nxc5 7. Bg2 O-O 8. a3 Bxc3+ 9. Qxc3 d6 10. Bf4 e5 11. Be3 Qc7 12. Nf3 Ng4 13. Nd2 Bd7 14. O-O Rac8 15. Bxc5 dxc5 16. Rfd1 h5 17. Ne4 Bc6 18. h3 Bxe4 19. Bxe4 Nf6 20. Bd5 Qe7 21. e4 h4 22. g4 Nh7 23. Qe3 Rcd8 24. Rd3 Rfe8 25. Rad1 Nf8 26. Qf3 Rd7 27. Qf5 g6 28. Qf3 Red8 29. Qe3 g5 30. Qf3 Kg7 31. Qf5 Rd6 32. Rf3 R8d7 33. Rb3 Ng6 34. Qf3 Nf4 35. Qe3 Ne6 36. Rb5 b6 37. b4 cxb4 38. Rxb4 Rc7 39. Rd3 Nd4 40. Rxd4 exd4 41. Qxd4+ f6 42. Rb3 Qe5 43. Qe3 Rc5 44. Kg2 Kf8 45. Qf3 Rc7 46. Qd3 Rc5 47. Qf3 Rd8 48. Qd3 Ke7 49. Qf3 Rb8 50. Qe2 Kf8 51. Qe3 Kg7 52. Qd3 Rh8 53. Qe2 Kf8 54. Rf3 Ke8 55. Rf5 Qe7 56. e5 Rf8 57. Qb2 Kd8 58. exf6 Qd6 59. f7 Kc7 60. Rf6 Qe7 61. Re6 Qxf7 62. Qe5+ Kc8 63. Rc6+ Rxc6 64. Bxf7 Rd8 65. Be6+ 1-0

[Event "45th FIDE Olympiad 2024"]
[Site "Budapest"]
[Date "2024.09.19"]
[Round "8.3"]
[White "Daneshvar, Bardiya"]
[Black "Erigaisi, Arjun"]
[Result "0-1"]
[ECO "A09"]
[WhiteElo "2598"]
[BlackElo "2778"]
[Annotator "TA"]
[PlyCount "71"]
[EventDate "2024.09.05"]
[EventType "team-tourn"]
[EventCountry "HUN"]
[SourceTitle "playchess.com"]
[Source "ChessBase"]
[SourceQuality "1"]
[WhiteTeam "Iran"]
[BlackTeam "India"]
[WhiteTeamCountry "IRI"]
[BlackTeamCountry "IND"]
[TimeControl "40/5400+30:1800+30"]

{[%evp 11,71,0,0,4,30,30,16,34,38,0,0,-7,0,-22,-18,-16,0,0,-8,-22,-14,-24,-25,-28,-29,-21,-20,-24,-14,-59,-71,-72,-55,-176,-177,-389,-335,-422,-260,-392,-433,-423,-418,-432,-434,-408,-367,-412,-339,-332,-339,-593,-431,-513,-505,-2382,-1372,-1372,-2579,-29991,-29992,-29997]} 1. Nf3 {[%emt 0:00:03]} d5 {[%emt 0:00:12][%cal Bd7d5,Bd5d4][%mdl 32]} 2. g3 {[%emt 0:00:03]} Nf6 {[%emt 0:00:22]} 3. Bg2 {[%emt 0:00:06]} c5 {[%emt 0:00:06]} 4. O-O {[%emt 0:00:06]} e6 {[%emt 0:00:04][%cal Be7e6,Be6e5][%mdl 32]} 5. c4 {[%emt 0:00:40]} d4 {[%emt 0:00:11]} 6. d3 {[%emt 0:00:24]} Nc6 {[%emt 0:00:08]} 7. e3 {[%emt 0:00:02]} Nd7 {[%emt 0:00:26]} 8. Na3 {[%emt 0:03:01][%cal Bb1a3,Ba3b5,Bb5c3,Bc3d5][%mdl 32]} e5 {[%emt 0:00:42]} 9. Nh4 {[%emt 0:08:59] The position is equal.} dxe3 {[%emt 0:11:36]} 10. fxe3 {[%emt 0:05:17]} Nf6 {[%emt 0:00:37]} 11. Nb5 {[%emt 0:03:05]} Bg4 {[%emt 0:04:59]} 12. Qb3 {[%emt 0:06:57]} Qd7 {[%emt 0:18:14]} 13. Nc3 {[%emt 0:09:52]} Rd8 {[%emt 0:03:09]} 14. Nd5 {[%emt 0:09:50]} Be7 {[%emt 0:00:13]} 15. Bd2 {[%emt 0:08:58]} O-O {[%emt 0:03:59]} 16. Rae1 {[%emt 0:07:20]} Be6 {[%emt 0:07:11][%cal Rf6d5]} 17. e4 {[%emt 0:00:39]} Nd4 {[%emt 0:00:24] Inhibits Nf5.} 18. Qc3 {[%emt 0:01:35]} Nxd5 {[%emt 0:01:14]} 19. cxd5 {[%emt 0:08:53]} Bg4 {[%emt 0:00:16]} 20. Be3 {[%emt 0:02:41]} Bxh4 {[%emt 0:03:46]} 21. gxh4 {[%emt 0:00:06]} f5 {[%emt 0:00:04] Black is more active.} (21... Ne2+ 22. Rxe2 Bxe2 23. Rf2 $11) 22. Bxd4 {[%emt 0:10:55] White does not recover from this.} (22. exf5 $1 $15 Ne2+ (22... Rxf5 23. Rxf5 Bxf5 24. Bxd4 $11) (22... Nxf5 23. Bxc5 Rfe8 24. Qc4 $16) (22... Bxf5 23. Bxd4 cxd4 24. Qb3 $15) 23. Rxe2 Bxe2 24. Re1) 22... cxd4 $19 {[%emt 0:01:47]} 23. Qc5 {[%emt 0:01:55]} (23. Qd2 {was called for.} f4 24. Bf3) 23... f4 {[%emt 0:01:21]} 24. Rf2 {[%emt 0:00:37]} b6 {[%emt 0:02:35]} 25. Qb4 {[%emt 0:01:05]} (25. Qc6 $142) 25... f3 {[%emt 0:08:15]} 26. Bf1 {[%emt 0:00:08]} Bh5 {[%emt 0:03:10] ...Qg4+ would now be deadly.} 27. Kh1 {[%emt 0:01:54]} Rf6 {[%emt 0:01:04]} 28. h3 {[%emt 0:03:13] Dodges Qg4} Rc8 {[%emt 0:02:21] Repels Rc1} 29. Qd2 {[%emt 0:01:17]} Rg6 {[%emt 0:04:54] Wards off Qg5} 30. Rc1 {[%emt 0:00:22]} Rf8 {[%emt 0:00:12]} 31. Qb4 {[%emt 0:02:33] Inhibits Qe7.} (31. Rc6 Rxc6 32. dxc6 Qxc6 33. Qg5) 31... h6 {[%emt 0:05:47] Hoping for ...Qd8.} 32. Rfc2 {[%emt 0:02:09]} f2 {[%emt 0:01:12]} 33. Rc7 {[%emt 0:01:00]} (33. Kh2 $142 Qf7 34. Qxf8+ Qxf8 35. Rc8) 33... Rg1+ {[%emt 0:00:39]} 34. Kh2 {[%emt 0:00:03] [#]} Rxf1 $1 {[%emt 0:01:06][%mdl 512]} 35. Rxd7 {[%emt 0:01:05]} (35. Rxf1 Qxc7) 35... Rxc1 {[%emt 0:00:07]} 36. Rd6 {[%emt 0:00:27] Weighted Error Value: White=0.70/Black=0.21 (precise) .  Mistake:       	White=5     	---        Inaccurate:     	White=2     	Black=2      OK:         	White=12    	Black=16     Best:        	---       	Black=2} 0-1

[Event "45th FIDE Olympiad 2024"]
[Site "Budapest"]
[Date "2024.09.19"]
[Round "8.3"]
[White "Abdel Wahab, Ahmad"]
[Black "Lilay, Weldu Gebru"]
[Result "1-0"]
[WhiteElo "1995"]
[BlackElo "1977"]
[PlyCount "55"]
[EventDate "2024.09.05"]
[EventType "team-tourn"]
[EventCountry "HUN"]
[WhiteTeam "Palestine"]
[BlackTeam "Eritrea"]
[WhiteTeamCountry "PLE"]
[BlackTeamCountry "ERI"]
[TimeControl "40/5400+30:1800+30"]

1. d4 Nf6 2. c4 e6 3. Nc3 c5 4. d5 d6 5. e4 Na6 6. h3 Be7 7. Nf3 Bd7 8. Be2 e5 9. a3 h6 10. O-O Qc8 11. Nh2 g5 12. Kh1 Nc7 13. a4 Na6 14. Ra3 Nb4 15. Ng4 h5 16. Nxf6+ Bxf6 17. Nb5 Ke7 18. Rf3 Qb8 19. h4 g4 20. Rxf6 Kxf6 21. f4 Kg6 22. fxe5 dxe5 23. Bg5 f5 24. exf5+ Bxf5 25. Rxf5 Kxf5 26. Qf1+ Kg6 27. Qf6+ Kh7 28. Qf7# 1-0

[Event "45th FIDE Olympiad 2024"]
[Site "Budapest"]
[Date "2024.09.19"]
[Round "8.4"]
[White "Vidit, Santosh Gujrathi"]
[Black "Idani, Pouya"]
[Result "1-0"]
[ECO "B87"]
[WhiteElo "2720"]
[BlackElo "2599"]
[Annotator "TA"]
[PlyCount "79"]
[EventDate "2024.09.05"]
[EventType "team-tourn"]
[EventCountry "HUN"]
[SourceTitle "playchess.com"]
[Source "ChessBase"]
[SourceQuality "1"]
[WhiteTeam "India"]
[BlackTeam "Iran"]
[WhiteTeamCountry "IND"]
[BlackTeamCountry "IRI"]
[TimeControl "40/5400+30:1800+30"]

{[%evp 23,79,12,22,11,0,0,7,0,51,37,29,29,54,52,50,36,65,70,55,60,131,140,174,160,295,294,452,436,459,441,416,210,205,213,213,219,219,211,262,245,436,444,445,445,576,560,516,550,684,668,6334,6310,29985,29986,29987,29988,29988,29989]} 1. e4 {[%emt 0:01:01]} c5 {[%emt 0:00:05]} 2. Nf3 {[%emt 0:00:22]} d6 {[%emt 0:00:03]} 3. d4 {[%emt 0:00:22]} cxd4 {[%emt 0:00:05]} 4. Nxd4 {[%emt 0:00:12]} Nf6 {[%emt 0:00:04]} 5. Nc3 {[%emt 0:00:18]} a6 {[%emt 0:00:03]} 6. Bc4 {[%emt 0:00:32]} e6 {[%emt 0:00:09]} 7. Be3 {[%emt 0:00:20]} b5 {[%emt 0:01:15]} 8. Bb3 {[%emt 0:03:09]} Bb7 {[%emt 0:06:33]} 9. f3 {[%emt 0:00:58]} Nc6 {[%emt 0:00:07] is recently more successful than 9...Nbd7. B87: Sicilian Scheveningen/Najdorf: 6 Bc4, with early ...b5.} 10. Qe2 {[%emt 0:16:20]} Na5 {[%emt 0:09:59]} 11. O-O-O {[%emt 0:03:44]} Nxb3+ {[%emt 0:00:17]} 12. cxb3 {[%emt 0:05:53]} Be7 $146 {[%emt 0:04:20]} ({Predecessor:} 12... Qc7 13. Kb1 Rd8 14. g4 Be7 15. h4 b4 16. Na4 d5 17. Nxe6 fxe6 18. Bb6 Qe5 19. Bxd8 Bxd8 {0-1 Flatten,A (2070)-Bausch,T (2117) Mittelrhein Verbandsliga-W 18/19 2018 (4.2)}) 13. Kb1 {[%emt 0:08:38]} O-O {[%emt 0:03:42]} 14. g4 {[%emt 0:02:14]} b4 {[%emt 0:09:32]} 15. Na4 {[%emt 0:00:27]} Nd7 {[%emt 0:00:05]} (15... Rc8 $11) 16. h4 $1 $14 {[%emt 0:01:33]} Qa5 {[%emt 0:06:55]} 17. Bg5 {[%emt 0:03:53]} Rfe8 {[%emt 0:21:27]} 18. Bxe7 $1 {[%emt 0:02:40]} Rxe7 {[%emt 0:00:07]} 19. h5 {[%emt 0:15:43]} Rc8 {[%emt 0:06:02]} 20. h6 {[%emt 0:02:21]} g6 $1 {[%emt 0:00:06]} 21. Qd2 {[%emt 0:02:02]} Nf6 {[%emt 0:09:51]} ({Black should play} 21... f6 $14) 22. Rhe1 $16 {[%emt 0:02:05]} (22. Nc2 Rec7 23. Qd4 (23. Qxb4 Qxb4 24. Nxb4 Nxe4 $11) (23. Nxb4 Nxe4 24. Qd4 e5 $17) 23... Qg5 $16 (23... Rxc2 24. Qxf6 Kf8 25. g5 $18)) 22... Rec7 {[%emt 0:01:36]} 23. a3 {[%emt 0:01:58]} Nd7 {[%emt 0:02:02]} (23... Re7 $16 24. Nc2 (24. Qxb4 Qxb4 25. axb4 Ne8 $16) (24. axb4 Qd8 $18) 24... Qd8) 24. f4 $18 {[%emt 0:06:13]} (24. Qxb4 $6 Qxb4 25. axb4 Kf8 $16) 24... e5 {[%emt 0:02:17]} (24... Nf6 {might work better.}) 25. axb4 $18 {[%emt 0:00:56]} (25. Qxb4 $2 Qxb4 26. axb4 exd4 27. Rxd4 Re8 $19) 25... Bxe4+ {[%emt 0:00:07]} 26. Rxe4 {[%emt 0:01:14]} Qd5 {[%emt 0:00:04] [#]} 27. Qd3 {[%emt 0:10:53]} (27. Nc3 Rxc3 28. bxc3 Qxe4+ 29. Nc2 Nf8 $16 (29... exf4 $2 30. Qxd6 Nf8 31. Qf6 $18)) (27. Qe1 $142 $1) 27... Nf6 $18 {[%emt 0:04:12] [#]} 28. Ree1 $1 {[%emt 0:00:11]} (28. Nc3 $2 Rxc3 29. bxc3 Nxe4 $19) 28... Qxd4 {[%emt 0:00:05]} 29. Qxd4 {[%emt 0:00:23]} (29. Qxa6 Qxf4 30. b5 Nd7 31. Qxd6 Qxh6 $18) 29... exd4 {[%emt 0:00:11]} 30. g5 {[%emt 0:00:06]} (30. Rxd4 Nxg4 31. Nb6 (31. Rxd6 Nxh6 32. Rxa6 Rb8 $11) 31... Rb8 $11) 30... Nh5 {[%emt 0:03:40]} 31. Rxd4 {[%emt 0:01:11]} Rf8 $2 {[%emt 0:02:14]} (31... Rb7 32. Rc4 (32. Rxd6 Rxb4 33. Nb6 Rf8 $18) 32... Rd8) 32. Rxd6 $18 {[%emt 0:02:54]} Nxf4 {[%emt 0:00:17]} 33. Nc5 {[%emt 0:00:08]} ({Don't do} 33. Rxa6 Rb7 34. Rb6 Rxb6 35. Nxb6 Rd8 $18) 33... Ne6 {[%emt 0:03:12]} 34. Nxe6 {[%emt 0:02:12]} fxe6 {[%emt 0:00:06]} 35. Rxa6 {[%emt 0:01:13]} e5 {[%emt 0:02:34]} 36. b5 {[%emt 0:00:50]} ({Worse is} 36. Rxe5 Rf1+ 37. Ka2 Rcc1 38. Ra8+ Kf7 39. Ra7+ Kf8 40. Ra8+ Kf7 41. Ra7+ Kf8 42. Ra8+ Kf7 $11) 36... Rc5 {[%emt 0:00:43]} 37. b6 {[%emt 0:00:35]} Rb8 {[%emt 0:02:18]} 38. Ra7 {[%emt 0:00:28]} Rb5 {[%emt 0:00:44]} 39. Rg7+ {[%emt 0:01:03]} Kh8 {[%emt 0:00:33]} 40. Rc1 {[%emt 0:00:10]} 1-0

[Event "45th FIDE Olympiad 2024"]
[Site "Budapest"]
[Date "2024.09.19"]
[Round "8.4"]
[White "Samuel, Merhawi Gebrehiwet"]
[Black "Miswadah, Baha"]
[Result "0-1"]
[WhiteElo "1788"]
[BlackElo "1957"]
[PlyCount "116"]
[EventDate "2024.09.05"]
[EventType "team-tourn"]
[EventCountry "HUN"]
[WhiteTeam "Eritrea"]
[BlackTeam "Palestine"]
[WhiteTeamCountry "ERI"]
[BlackTeamCountry "PLE"]
[TimeControl "40/5400+30:1800+30"]

1. Nf3 Nf6 2. d4 d5 3. c4 c6 4. b3 Bf5 5. Bb2 e6 6. e3 Bb4+ 7. Nbd2 Nbd7 8. a3 Bd6 9. Be2 Ne4 10. Nxe4 Bxe4 11. Bd3 Bg6 12. Qe2 Nf6 13. Nd2 Bxd3 14. Qxd3 O-O 15. c5 Bc7 16. f4 b6 17. b4 a5 18. O-O b5 19. Bc3 Qe7 20. Rfb1 Ra7 21. g3 Rfa8 22. e4 dxe4 23. Nxe4 Nd5 24. Ng5 g6 25. Ne4 axb4 26. axb4 Rxa1 27. Rxa1 Rxa1+ 28. Bxa1 Nxb4 29. Qa3 Nd5 30. Qa8+ Qd8 31. Qxc6 b4 32. Bb2 h6 33. Kg2 Ne3+ 34. Kf3 Nc4 35. Ba1 b3 36. Qb5 Qd5 37. Kf2 Qxe4 38. Qxc4 Ba5 39. Qa4 Qc2+ 40. Kf3 b2 41. Qxc2 bxa1=Q 42. c6 Bc7 43. Qc4 Qh1+ 44. Kf2 Qxh2+ 45. Kf3 Qh5+ 46. Ke3 Qh3 47. Kf2 Qh2+ 48. Kf3 Qh1+ 49. Ke3 Qg2 50. Qa6 Qxg3+ 51. Ke2 Qxf4 52. Qc8+ Kg7 53. Qd7 h5 54. d5 exd5 55. Kd3 Qc4+ 56. Kd2 Bf4+ 57. Ke1 Qe4+ 58. Kd1 Qd3+ {0-} 0-1